[Event "FIDE World School-ch O-15 2025"]
[Site "Vrnjacka Banja"]
[Date "2025.03.21"]
[Round "2.6"]
[White "Dascalescu, Adelin-Stefan"]
[Black "Hettigoda, Dhanodya Budmina"]
[Result "1/2-1/2"]
[Annotator "NA RC"]
[ECO "A40"]
[WhiteElo "2061"]
[BlackElo "1837"]
[PlyCount "74"]
[EventDate "2025.03.19"]
[EventType "swiss"]
[EventCountry "SRB"]
[SourceTitle "playchess.com"]
[Source "ChessBase"]
[SourceQuality "1"]
[TimeControl "5400+30"]

1. d4 {[%emt 0:00:01]} e6 {[%emt 0:00:05]} 2. c4 {[%emt 0:01:44]} b6 {[%emt 0:00:04]} 3. Nc3 {[%emt 0:00:04]} Bb7 {[%emt 0:00:04]} 4. e4 {[%emt 0:00:03]} Bb4 {[%emt 0:00:04]} 5. Qc2 {[%emt 0:01:04]} Qh4 {[%emt 0:05:06]} 6. Bd3 {[%emt 0:00:46]} Bxc3+ {[%emt 0:06:13]} 7. bxc3 {[%emt 0:00:39]} f5 {[%emt 0:02:05]} 8. g3 {[%emt 0:03:05]} Qh5 {[%emt 0:03:20]} 9. Be2 {[%emt 0:06:32]} Qf7 {[%emt 0:02:14]} 10. f3 {[%emt 0:01:28]} fxe4 {[%emt 0:11:30]} 11. fxe4 {[%emt 0:00:05]} Qg6 {[%emt 0:02:06]} 12. Bd3 {[%emt 0:02:02]} Nf6 {[%emt 0:10:31]} 13. d5 {[%emt 0:00:36]} Ng4 {[%emt 0:04:37]} 14. Nf3 {[%emt 0:03:40]} Qh5 {[%emt 0:03:21]} 15. O-O {[%emt 0:18:41]} O-O {[%emt 0:05:01]} 16. Qe2 {[%emt 0:01:36]} Ne5 {[%emt 0:06:58]} 17. Nxe5 {[%emt 0:00:13]} Rxf1+ {[%emt 0:00:22]} 18. Kxf1 {[%emt 0:00:52]} Qxe5 {[%emt 0:00:27]} 19. Bf4 {[%emt 0:01:34]} Qxc3 {[%emt 0:02:50]} 20. Rc1 {[%emt 0:00:05]} Qf6 {[%emt 0:00:40]} 21. e5 {[%emt 0:01:11]} Qf7 {[%emt 0:00:54]} 22. Qe4 {[%emt 0:00:19]} Qg6 {[%emt 0:04:37]} 23. Qf3 {[%emt 0:03:21]} Qe8 {[%emt 0:01:46]} 24. Be4 {[%emt 0:00:36]} Na6 {[%emt 0:01:37]} 25. Kg1 {[%emt 0:03:43]} Nc5 {[%emt 0:01:09]} 26. Bb1 {[%emt 0:00:37]} Qf7 {[%emt 0:01:15]} 27. Rd1 {[%emt 0:00:54]} Kh8 {[%emt 0:02:31]} 28. Qg2 {[%emt 0:02:24]} Rf8 {[%emt 0:05:38]} 29. Be3 {[%emt 0:02:41]} Qh5 {[%emt 0:03:35]} 30. Rf1 {[%emt 0:06:17]} Rxf1+ {[%emt 0:02:12]} 31. Qxf1 {[%emt 0:00:08]} Kg8 {[%emt 0:00:21]} 32. Bxc5 {[%emt 0:01:36]} bxc5 {[%emt 0:00:01]} 33. dxe6 {[%emt 0:00:08]} dxe6 {[%emt 0:01:16]} 34. Qd3 {[%emt 0:01:57]} Qxe5 {[%emt 0:03:29]} 35. Qd8+ {[%emt 0:00:06]} Kf7 {[%emt 0:00:03]} 36. Qd7+ {[%emt 0:00:04]} Kf6 {[%emt 0:00:05]} 37. Qd8+ {[%emt 0:00:03]} Kf7 {[%emt 0:00:06]} 1/2-1/2

[Event "FIDE World School-ch O-15 2025"]
[Site "Vrnjacka Banja"]
[Date "2025.03.21"]
[Round "2.7"]
[White "Rakic, Nikola V"]
[Black "Kabinazar, Nurmukhammed"]
[Result "0-1"]
[Annotator "NA RC"]
[ECO "E46"]
[WhiteElo "1894"]
[BlackElo "2057"]
[PlyCount "80"]
[EventDate "2025.03.19"]
[EventType "swiss"]
[EventCountry "SRB"]
[SourceTitle "playchess.com"]
[Source "ChessBase"]
[SourceQuality "1"]
[TimeControl "5400+30"]

1. d4 {[%emt 0:00:04]} Nf6 {[%emt 0:00:08]} 2. c4 {[%emt 0:00:13]} e6 {[%emt 0:00:25]} 3. Nc3 {[%emt 0:00:25]} Bb4 {[%emt 0:00:20]} 4. Bd2 {[%emt 0:00:34]} O-O {[%emt 0:04:29]} 5. e3 {[%emt 0:02:26]} d5 {[%emt 0:02:33]} 6. a3 {[%emt 0:01:56]} Be7 {[%emt 0:04:04]} 7. Nf3 {[%emt 0:02:36]} b6 {[%emt 0:03:15]} 8. cxd5 {[%emt 0:10:52]} exd5 {[%emt 0:00:17]} 9. Bd3 {[%emt 0:00:25]} a6 {[%emt 0:02:41]} 10. b4 {[%emt 0:02:45]} Bd6 {[%emt 0:02:05]} 11. Qc2 {[%emt 0:04:05]} Re8 {[%emt 0:05:22]} 12. h3 {[%emt 0:04:06]} Bb7 {[%emt 0:01:52]} 13. O-O {[%emt 0:01:55]} Nbd7 {[%emt 0:01:29]} 14. Bc1 {[%emt 0:02:39]} Nf8 {[%emt 0:09:04]} 15. b5 {[%emt 0:03:53]} axb5 {[%emt 0:13:50]} 16. Nxb5 {[%emt 0:01:43]} Ne6 {[%emt 0:00:46]} 17. Nxd6 {[%emt 0:02:31]} Qxd6 {[%emt 0:00:13]} 18. Bb2 {[%emt 0:00:46]} Ne4 {[%emt 0:07:37]} 19. Nd2 {[%emt 0:06:06]} Nxd2 {[%emt 0:08:36]} 20. Qxd2 {[%emt 0:00:23]} Ba6 {[%emt 0:31:24]} 21. Rfc1 {[%emt 0:04:02]} Bxd3 {[%emt 0:00:00]} 22. Qxd3 {[%emt 0:00:59]} c5 {[%emt 0:00:00]} 23. dxc5 {[%emt 0:05:19]} bxc5 {[%emt 0:00:00]} 24. a4 {[%emt 0:03:42]} Reb8 {[%emt 0:00:00]} 25. Qc2 {[%emt 0:00:56]} d4 {[%emt 0:00:00]} 26. exd4 {[%emt 0:03:41]} cxd4 {[%emt 0:00:00]} 27. Rd1 {[%emt 0:11:48]} Qd5 {[%emt 0:00:00]} 28. Qd2 {[%emt 0:04:39]} Rd8 {[%emt 0:00:00]} 29. Ra3 {[%emt 0:01:23]} h6 {[%emt 0:00:00]} 30. a5 {[%emt 0:04:53]} Ra6 {[%emt 0:00:00]} 31. f3 {[%emt 0:03:23]} h5 {[%emt 0:00:00]} 32. Ra4 {[%emt 0:04:37]} d3 {[%emt 0:00:00]} 33. Ra3 {[%emt 0:00:40]} Nc5 {[%emt 0:00:00]} 34. Re1 {[%emt 0:02:50]} Rg6 {[%emt 0:04:58]} 35. Re5 {[%emt 0:01:43]} Qc4 {[%emt 0:00:39]} 36. Qc3 {[%emt 0:02:26]} Qf4 {[%emt 0:01:38]} 37. Re1 {[%emt 0:00:41]} Qxf3 {[%emt 0:00:27]} 38. Qd2 {[%emt 0:00:19]} Ne4 {[%emt 0:00:37]} 39. Kh1 {[%emt 0:00:52]} Nf2+ {[%emt 0:00:28]} 40. Kg1 {[%emt 0:00:32]} Qxg2# {[%emt 0:00:21]} 0-1

[Event "FIDE World School-ch O-15 2025"]
[Site "Vrnjacka Banja"]
[Date "2025.03.21"]
[Round "2.8"]
[White "Avramovic, Aleksa"]
[Black "Harabor, David-Alexandru"]
[Result "0-1"]
[Annotator "NA RC"]
[ECO "B67"]
[WhiteElo "1862"]
[BlackElo "1989"]
[PlyCount "58"]
[EventDate "2025.03.19"]
[EventType "swiss"]
[EventCountry "SRB"]
[SourceTitle "playchess.com"]
[Source "ChessBase"]
[SourceQuality "1"]
[TimeControl "5400+30"]

1. e4 {[%emt 0:00:05]} c5 {[%emt 0:00:19]} 2. Nf3 {[%emt 0:00:07]} d6 {[%emt 0:00:13]} 3. d4 {[%emt 0:00:07]} cxd4 {[%emt 0:00:13]} 4. Nxd4 {[%emt 0:00:14]} Nf6 {[%emt 0:00:11]} 5. Nc3 {[%emt 0:00:10]} Nc6 {[%emt 0:00:25]} 6. Bg5 {[%emt 0:00:17]} Bd7 {[%emt 0:01:13]} 7. Qd2 {[%emt 0:00:57]} a6 {[%emt 0:01:07]} 8. O-O-O {[%emt 0:01:03]} b5 {[%emt 0:06:19]} 9. f3 {[%emt 0:06:58]} e6 {[%emt 0:02:07]} 10. Nxc6 {[%emt 0:05:07]} Bxc6 {[%emt 0:00:14]} 11. Kb1 {[%emt 0:01:27]} Be7 {[%emt 0:02:34]} 12. h4 {[%emt 0:04:18]} Qb6 {[%emt 0:03:17]} 13. Be3 {[%emt 0:07:33]} Qb7 {[%emt 0:02:05]} 14. Ne2 {[%emt 0:13:32]} d5 {[%emt 0:09:09]} 15. e5 {[%emt 0:02:24]} Nd7 {[%emt 0:00:30]} 16. f4 {[%emt 0:01:39]} b4 {[%emt 0:07:29]} 17. Nd4 {[%emt 0:02:52]} Nc5 {[%emt 0:05:47]} 18. Bd3 {[%emt 0:03:37]} Ne4 {[%emt 0:10:23]} 19. Bxe4 {[%emt 0:01:25]} dxe4 {[%emt 0:00:09]} 20. f5 {[%emt 0:05:51]} Bd5 {[%emt 0:04:50]} 21. Qf2 {[%emt 0:06:38]} O-O-O {[%emt 0:04:56]} 22. g4 {[%emt 0:10:50]} Kb8 {[%emt 0:04:20]} 23. Nb3 {[%emt 0:06:07]} Rc8 {[%emt 0:07:14]} 24. Rh3 {[%emt 0:04:42]} Rhd8 {[%emt 0:03:52]} 25. Bb6 {[%emt 0:02:34]} Bxb3 {[%emt 0:06:30]} 26. Rxd8 {[%emt 0:04:13]} Bxc2+ {[%emt 0:00:38]} 27. Ka1 {[%emt 0:02:37]} Bxd8 {[%emt 0:00:16]} 28. Bxd8 {[%emt 0:01:42]} e3 {[%emt 0:02:15]} 29. Rxe3 {[%emt 0:00:48]} Rxd8 {[%emt 0:00:35]} 0-1